[Event "Early-Titled-Tuesday-Blitz-April-16-2024"]
[Site "Chess.com"]
[Date "2024.04.16"]
[Round "6"]
[White "Nimrod_Veinberg"]
[Black "kuba2006"]
[Result "1-0"]
[WhiteElo "2711"]
[BlackElo "2543"]
[TimeControl "180+1"]
[EndTime "9:08:40 PDT"]
[Termination "Nimrod_Veinberg won on time"]

1. e4 {[%clk 0:03:00.9]} 1... Nf6 {[%clk 0:03:00.9]} 2. e5 {[%clk 0:02:59.8]}
2... Nd5 {[%clk 0:03:00.1]} 3. d4 {[%clk 0:03:00.5]} 3... d6 {[%clk 0:03:00.2]}
4. Nf3 {[%clk 0:03:00.9]} 4... Bg4 {[%clk 0:02:59]} 5. Be2 {[%clk 0:02:59.2]}
5... c6 {[%clk 0:02:58.7]} 6. exd6 {[%clk 0:02:57]} 6... exd6 {[%clk 0:02:57.9]}
7. O-O {[%clk 0:02:57.6]} 7... Be7 {[%clk 0:02:56.3]} 8. h3 {[%clk 0:02:57]}
8... Bh5 {[%clk 0:02:55.4]} 9. c4 {[%clk 0:02:56]} 9... Nb6 {[%clk 0:02:54.4]}
10. b3 {[%clk 0:02:55.9]} 10... O-O {[%clk 0:02:52.9]} 11. Nc3 {[%clk 0:02:55]}
11... Bf6 {[%clk 0:02:52.5]} 12. Bf4 {[%clk 0:02:49.9]} 12... Na6 {[%clk
0:02:45.7]} 13. Qd2 {[%clk 0:02:48.7]} 13... Re8 {[%clk 0:02:41.7]} 14. Rfe1
{[%clk 0:02:47.1]} 14... Qd7 {[%clk 0:02:40.1]} 15. g4 {[%clk 0:02:37.3]} 15...
Bg6 {[%clk 0:02:38.7]} 16. Bd3 {[%clk 0:02:37.9]} 16... Bxd3 {[%clk 0:02:21.8]}
17. Qxd3 {[%clk 0:02:37.1]} 17... h5 {[%clk 0:02:11.7]} 18. Ne4 {[%clk
0:02:26.1]} 18... hxg4 {[%clk 0:01:51.1]} 19. Nxf6+ {[%clk 0:02:25.1]} 19...
gxf6 {[%clk 0:01:51.2]} 20. Nh4 {[%clk 0:02:00.2]} 20... Rxe1+ {[%clk 0:01:34]}
21. Rxe1 {[%clk 0:01:57.7]} 21... Re8 {[%clk 0:01:34.9]} 22. Rxe8+ {[%clk
0:01:46.9]} 22... Qxe8 {[%clk 0:01:35.8]} 23. Nf5 {[%clk 0:01:46.8]} 23... Qe1+
{[%clk 0:01:31]} 24. Kg2 {[%clk 0:01:37.3]} 24... Nb4 {[%clk 0:01:29]} 25. Nh6+
{[%clk 0:01:35.9]} 25... Kf8 {[%clk 0:01:14.4]} 26. Bxd6+ {[%clk 0:01:34.7]}
26... Ke8 {[%clk 0:01:12.2]} 27. Bxb4 {[%clk 0:01:27.5]} 27... gxh3+ {[%clk
0:01:12]} 28. Qxh3 {[%clk 0:01:16]} 28... Qxb4 {[%clk 0:01:10.1]} 29. Nf5 {[%clk
0:01:15.9]} 29... Qf8 {[%clk 0:00:33.6]} 30. a4 {[%clk 0:00:52.2]} 30... a5
{[%clk 0:00:29.6]} 31. Qe3+ {[%clk 0:00:44.3]} 31... Kd7 {[%clk 0:00:26.9]} 32.
d5 {[%clk 0:00:42.2]} 32... Nc8 {[%clk 0:00:25.5]} 33. dxc6+ {[%clk 0:00:40]}
33... bxc6 {[%clk 0:00:20.5]} 34. Qd2+ {[%clk 0:00:37.7]} 34... Kc7 {[%clk
0:00:20.1]} 35. Qxa5+ {[%clk 0:00:37.4]} 35... Kd7 {[%clk 0:00:19.5]} 36. Qd2+
{[%clk 0:00:36.7]} 36... Kc7 {[%clk 0:00:19.1]} 37. b4 {[%clk 0:00:31.9]} 37...
Qg8+ {[%clk 0:00:17.3]} 38. Kf3 {[%clk 0:00:27]} 38... Qg6 {[%clk 0:00:16.8]}
39. Qf4+ {[%clk 0:00:25.4]} 39... Kb7 {[%clk 0:00:15.3]} 40. a5 {[%clk
0:00:22.3]} 40... Qh5+ {[%clk 0:00:14.2]} 41. Kg2 {[%clk 0:00:17.9]} 41... Qd1
{[%clk 0:00:13.8]} 42. b5 {[%clk 0:00:12.1]} 42... Qd3 {[%clk 0:00:05.6]} 43.
a6+ {[%clk 0:00:07.4]} 43... Kb6 {[%clk 0:00:03.7]} 44. Qb8+ {[%clk 0:00:06.1]}
44... Kc5 {[%clk 0:00:02.2]} 45. Qxc8 {[%clk 0:00:05.7]} 1-0

[Event "Early-Titled-Tuesday-Blitz-April-16-2024"]
[Site "Chess.com"]
[Date "2024.04.16"]
[Round "6"]
[White "FGHSMN"]
[Black "Susal_De_Silva"]
[Result "0-1"]
[WhiteElo "2892"]
[BlackElo "2704"]
[TimeControl "180+1"]
[EndTime "9:08:41 PDT"]
[Termination "Susal_De_Silva won by resignation"]

1. e4 {[%clk 0:03:00.9]} 1... e5 {[%clk 0:03:00.2]} 2. Nf3 {[%clk 0:03:01.5]}
2... Nc6 {[%clk 0:03:00.6]} 3. d4 {[%clk 0:03:00.9]} 3... exd4 {[%clk 0:03:00]}
4. Nxd4 {[%clk 0:03:01.8]} 4... Qf6 {[%clk 0:02:58.8]} 5. Nf3 {[%clk 0:03:01.3]}
5... Qg6 {[%clk 0:02:58.6]} 6. Nc3 {[%clk 0:02:48.8]} 6... Bb4 {[%clk
0:02:58.1]} 7. Bd2 {[%clk 0:02:49.1]} 7... Nge7 {[%clk 0:02:55]} 8. Bd3 {[%clk
0:02:40.1]} 8... d6 {[%clk 0:02:38.8]} 9. Nb5 {[%clk 0:02:22.4]} 9... Bxd2+
{[%clk 0:02:33.3]} 10. Qxd2 {[%clk 0:02:17.5]} 10... Qxg2 {[%clk 0:02:30.7]} 11.
O-O-O {[%clk 0:02:14.4]} 11... Bg4 {[%clk 0:02:05.2]} 12. Nxc7+ {[%clk
0:02:03.1]} 12... Kd7 {[%clk 0:02:04.9]} 13. Bf1 {[%clk 0:01:40.4]} 13... Qxf3
{[%clk 0:01:58.9]} 14. Qxd6+ {[%clk 0:01:40.5]} 14... Kc8 {[%clk 0:01:58.8]} 15.
Be2 {[%clk 0:01:40.9]} 15... Rd8 {[%clk 0:01:08.2]} 16. Nxa8 {[%clk 0:01:05.5]}
16... Rxd6 {[%clk 0:01:01.2]} 17. Bxf3 {[%clk 0:01:04.8]} 17... Bxf3 {[%clk
0:00:59.5]} 18. Rxd6 {[%clk 0:01:02.8]} 18... Bxh1 {[%clk 0:00:59.7]} 19. e5
{[%clk 0:00:30]} 19... Kb8 {[%clk 0:00:52]} 20. b4 {[%clk 0:00:26.6]} 20... Kxa8
{[%clk 0:00:14.4]} 21. b5 {[%clk 0:00:26.4]} 21... Nb8 {[%clk 0:00:12.8]} 22. c4
{[%clk 0:00:25.1]} 22... b6 {[%clk 0:00:10.7]} 23. Rd8 {[%clk 0:00:24.1]} 23...
Ng6 {[%clk 0:00:10.1]} 24. f4 {[%clk 0:00:20]} 24... Nxf4 {[%clk 0:00:10.3]} 25.
Rf8 {[%clk 0:00:20.6]} 25... Nd3+ {[%clk 0:00:10.7]} 26. Kd2 {[%clk 0:00:19.6]}
26... Nxe5 {[%clk 0:00:11.6]} 27. Kc3 {[%clk 0:00:20.5]} 27... Kb7 {[%clk
0:00:11.3]} 28. Rh8 {[%clk 0:00:20]} 28... h5 {[%clk 0:00:09.7]} 29. Rg8 {[%clk
0:00:20.6]} 29... g6 {[%clk 0:00:09.8]} 30. Kd4 {[%clk 0:00:21]} 30... Nbd7
{[%clk 0:00:08.7]} 31. a4 {[%clk 0:00:21.7]} 31... h4 {[%clk 0:00:07.5]} 32. Rh8
{[%clk 0:00:21.7]} 32... g5 {[%clk 0:00:07.6]} 33. a5 {[%clk 0:00:21.5]} 33...
f6 {[%clk 0:00:06.2]} 34. a6+ {[%clk 0:00:20.9]} 34... Kc7 {[%clk 0:00:06.7]}
35. Rh7 {[%clk 0:00:19.9]} 35... g4 {[%clk 0:00:06.4]} 36. Ke3 {[%clk
0:00:18.8]} 36... g3 {[%clk 0:00:05]} 37. hxg3 {[%clk 0:00:16.4]} 37... hxg3
{[%clk 0:00:05.9]} 38. Rxh1 {[%clk 0:00:16.5]} 38... Nxc4+ {[%clk 0:00:03.9]}
39. Kf4 {[%clk 0:00:16.7]} 39... Nd6 {[%clk 0:00:04]} 40. Rc1+ {[%clk
0:00:16.9]} 40... Nc5 {[%clk 0:00:04.6]} 41. Rb1 {[%clk 0:00:16.6]} 41... g2
{[%clk 0:00:04.6]} 42. Kf3 {[%clk 0:00:16.6]} 42... f5 {[%clk 0:00:03.8]} 43.
Kxg2 {[%clk 0:00:16.4]} 43... Nde4 {[%clk 0:00:04.7]} 44. Kf3 {[%clk 0:00:16.6]}
44... Nd2+ {[%clk 0:00:05.1]} 45. Kf4 {[%clk 0:00:15.6]} 45... Nxb1 {[%clk
0:00:06]} 0-1

[Event "Early-Titled-Tuesday-Blitz-April-16-2024"]
[Site "Chess.com"]
[Date "2024.04.16"]
[Round "6"]
[White "Acva-Alenok"]
[Black "Schattman"]
[Result "0-1"]
[WhiteElo "2313"]
[BlackElo "2497"]
[TimeControl "180+1"]
[EndTime "9:08:43 PDT"]
[Termination "Schattman won on time"]

1. d4 {[%clk 0:03:00.9]} 1... d5 {[%clk 0:03:00.1]} 2. c4 {[%clk 0:03:01.4]}
2... e6 {[%clk 0:03:00.4]} 3. Nf3 {[%clk 0:03:01.9]} 3... Nf6 {[%clk 0:03:00.2]}
4. g3 {[%clk 0:03:02.4]} 4... dxc4 {[%clk 0:03:00.4]} 5. Bg2 {[%clk 0:03:02.9]}
5... c5 {[%clk 0:03:00.7]} 6. O-O {[%clk 0:03:01.9]} 6... Nc6 {[%clk 0:03:00.1]}
7. Qa4 {[%clk 0:03:01.3]} 7... Bd7 {[%clk 0:02:54.8]} 8. Qxc4 {[%clk 0:03:01.2]}
8... b5 {[%clk 0:02:51.5]} 9. Qd3 {[%clk 0:02:37.1]} 9... c4 {[%clk 0:02:51]}
10. Qd1 {[%clk 0:02:12.7]} 10... Rc8 {[%clk 0:02:50.7]} 11. Bg5 {[%clk 0:01:35]}
11... Be7 {[%clk 0:02:50.4]} 12. Nc3 {[%clk 0:01:07.7]} 12... a6 {[%clk
0:02:50.1]} 13. Rc1 {[%clk 0:01:03.4]} 13... O-O {[%clk 0:02:47.7]} 14. a4
{[%clk 0:01:00.1]} 14... b4 {[%clk 0:02:43.4]} 15. Bxf6 {[%clk 0:00:55.7]} 15...
gxf6 {[%clk 0:02:43.2]} 16. Ne4 {[%clk 0:00:50.5]} 16... Na5 {[%clk 0:02:43.3]}
17. d5 {[%clk 0:00:28.2]} 17... exd5 {[%clk 0:02:25]} 18. Qxd5 {[%clk
0:00:28.9]} 18... Be6 {[%clk 0:02:25.5]} 19. Qh5 {[%clk 0:00:26.4]} 19... Kh8
{[%clk 0:02:12.7]} 20. Rfd1 {[%clk 0:00:24]} 20... Qb6 {[%clk 0:02:02.4]} 21.
Qh6 {[%clk 0:00:22.2]} 21... Bf5 {[%clk 0:01:47.8]} 22. Neg5 {[%clk 0:00:20.3]}
22... Bg6 {[%clk 0:01:47.7]} 23. Nxh7 {[%clk 0:00:16.5]} 23... Kg8 {[%clk
0:01:21.9]} 24. Nxf8 {[%clk 0:00:15.9]} 24... Bxf8 {[%clk 0:01:21.7]} 25. Qd2
{[%clk 0:00:14.6]} 25... Nb3 {[%clk 0:01:18]} 26. Qd7 {[%clk 0:00:15]} 26... Rc7
{[%clk 0:01:13.5]} 27. Qd8 {[%clk 0:00:12.5]} 27... Nxc1 {[%clk 0:01:12.5]} 28.
Rxc1 {[%clk 0:00:13.4]} 28... Qd6 {[%clk 0:01:10.3]} 29. Qxd6 {[%clk 0:00:12.8]}
29... Bxd6 {[%clk 0:01:10.9]} 30. Nh4 {[%clk 0:00:13.3]} 30... c3 {[%clk
0:01:05.4]} 31. bxc3 {[%clk 0:00:12.5]} 31... bxc3 {[%clk 0:01:03.5]} 32. Nxg6
{[%clk 0:00:13]} 32... fxg6 {[%clk 0:01:03.4]} 33. Bd5+ {[%clk 0:00:12.6]} 33...
Kg7 {[%clk 0:01:02.7]} 34. Rc2 {[%clk 0:00:11.8]} 34... Ba3 {[%clk 0:01:00.8]}
35. e4 {[%clk 0:00:11.2]} 35... Bb2 {[%clk 0:00:55.6]} 36. f4 {[%clk 0:00:10.9]}
36... Rc5 {[%clk 0:00:54]} 37. Kf2 {[%clk 0:00:10.6]} 37... f5 {[%clk
0:00:54.5]} 38. Ke3 {[%clk 0:00:10.2]} 38... fxe4 {[%clk 0:00:54.7]} 39. Bxe4
{[%clk 0:00:10.6]} 39... Rc4 {[%clk 0:00:51.1]} 40. a5 {[%clk 0:00:07.4]} 40...
Ra4 {[%clk 0:00:48.9]} 41. Bd3 {[%clk 0:00:06.1]} 41... Rxa5 {[%clk 0:00:48.2]}
42. Re2 {[%clk 0:00:06.5]} 42... Ra1 {[%clk 0:00:45.4]} 43. Bc4 {[%clk
0:00:05.6]} 43... a5 {[%clk 0:00:42.3]} 44. Kd3 {[%clk 0:00:06]} 44... Rd1+
{[%clk 0:00:37.3]} 45. Kc2 {[%clk 0:00:05.5]} 45... Rd4 {[%clk 0:00:37.2]} 46.
Kb3 {[%clk 0:00:04.6]} 46... a4+ {[%clk 0:00:36.2]} 47. Kb4 {[%clk 0:00:04.7]}
47... a3 {[%clk 0:00:36.6]} 48. Kb3 {[%clk 0:00:04.3]} 48... a2 {[%clk
0:00:35.3]} 49. Re7+ {[%clk 0:00:02]} 49... Kf8 {[%clk 0:00:34.7]} 50. Re1
{[%clk 0:00:01]} 50... Rxc4 {[%clk 0:00:31.6]} 0-1

[Event "Early-Titled-Tuesday-Blitz-April-16-2024"]
[Site "Chess.com"]
[Date "2024.04.16"]
[Round "6"]
[White "yonaltimur"]
[Black "dontcatchmeifyoucant"]
[Result "1-0"]
[WhiteElo "2438"]
[BlackElo "2138"]
[TimeControl "180+1"]
[EndTime "9:08:43 PDT"]
[Termination "yonaltimur won by resignation"]

1. e4 {[%clk 0:03:00.9]} 1... c6 {[%clk 0:02:59.2]} 2. c4 {[%clk 0:02:58.8]}
2... d5 {[%clk 0:03:00.1]} 3. cxd5 {[%clk 0:02:58.6]} 3... cxd5 {[%clk 0:03:01]}
4. exd5 {[%clk 0:02:59.4]} 4... Nf6 {[%clk 0:03:01]} 5. Nc3 {[%clk 0:02:58.4]}
5... Nxd5 {[%clk 0:03:01.6]} 6. Nf3 {[%clk 0:02:57.7]} 6... Nc6 {[%clk
0:02:59.4]} 7. d4 {[%clk 0:02:54.2]} 7... Bg4 {[%clk 0:02:48]} 8. Be2 {[%clk
0:02:33.1]} 8... e6 {[%clk 0:02:41.7]} 9. O-O {[%clk 0:02:29.7]} 9... Be7 {[%clk
0:02:37.6]} 10. h3 {[%clk 0:02:25.3]} 10... Bh5 {[%clk 0:02:35.3]} 11. Nxd5
{[%clk 0:01:49.1]} 11... Qxd5 {[%clk 0:02:28.5]} 12. Be3 {[%clk 0:01:49.6]}
12... O-O {[%clk 0:02:23.3]} 13. Ne5 {[%clk 0:01:31]} 13... Bxe2 {[%clk
0:02:08.8]} 14. Nxc6 {[%clk 0:01:31]} 14... Qxc6 {[%clk 0:02:03.2]} 15. Qxe2
{[%clk 0:01:31]} 15... Bf6 {[%clk 0:01:48.3]} 16. Rac1 {[%clk 0:01:30.3]} 16...
Qd5 {[%clk 0:01:46.9]} 17. Qc4 {[%clk 0:01:19.7]} 17... Rfd8 {[%clk 0:01:46.1]}
18. Rfd1 {[%clk 0:01:19.2]} 18... h5 {[%clk 0:01:42.8]} 19. Qxd5 {[%clk
0:01:18.6]} 19... Rxd5 {[%clk 0:01:43.3]} 20. Rc7 {[%clk 0:01:19.2]} 20... Rb5
{[%clk 0:01:41.6]} 21. b3 {[%clk 0:01:19]} 21... Rd8 {[%clk 0:01:41]} 22. Kf1
{[%clk 0:01:12.2]} 22... Be5 {[%clk 0:01:29.7]} 23. Rc4 {[%clk 0:01:05.5]} 23...
Rbd5 {[%clk 0:01:26.1]} 24. Ke2 {[%clk 0:01:05.1]} 24... Bd6 {[%clk 0:01:14.6]}
25. Rdc1 {[%clk 0:01:03.3]} 25... f6 {[%clk 0:01:07.4]} 26. Rc8 {[%clk
0:01:00.2]} 26... Rxc8 {[%clk 0:01:07.5]} 27. Rxc8+ {[%clk 0:00:59.1]} 27... Kf7
{[%clk 0:01:08.4]} 28. Ra8 {[%clk 0:00:59.2]} 28... a6 {[%clk 0:01:05.2]} 29.
Ra7 {[%clk 0:00:50.6]} 29... Rb5 {[%clk 0:01:05.1]} 30. Kd3 {[%clk 0:00:50.9]}
30... Kg6 {[%clk 0:00:59.5]} 31. Kc4 {[%clk 0:00:47.1]} 31... Ra5 {[%clk
0:00:47.3]} 32. a4 {[%clk 0:00:27.3]} 32... b5+ {[%clk 0:00:39]} 33. Kd3 {[%clk
0:00:27.2]} 33... bxa4 {[%clk 0:00:37]} 34. Bd2 {[%clk 0:00:27.5]} 34... Rf5
{[%clk 0:00:15.2]} 35. Rxa6 {[%clk 0:00:22.4]} 35... Bc7 {[%clk 0:00:15]} 36.
bxa4 {[%clk 0:00:10.3]} 36... Rxf2 {[%clk 0:00:15.3]} 37. g4 {[%clk 0:00:10.9]}
37... Rf3+ {[%clk 0:00:14]} 38. Kc4 {[%clk 0:00:11.3]} 38... Rxh3 {[%clk
0:00:13.2]} 39. gxh5+ {[%clk 0:00:11.9]} 39... Rxh5 {[%clk 0:00:13.8]} 40. Rxe6
{[%clk 0:00:12.4]} 40... Kf5 {[%clk 0:00:12.8]} 41. Rc6 {[%clk 0:00:12.6]} 41...
Bg3 {[%clk 0:00:10.7]} 42. Rc5+ {[%clk 0:00:12.8]} 42... Kg4 {[%clk 0:00:08.5]}
43. Rxh5 {[%clk 0:00:12.7]} 43... Kxh5 {[%clk 0:00:09.4]} 44. a5 {[%clk
0:00:13.3]} 44... Kg6 {[%clk 0:00:06.2]} 45. a6 {[%clk 0:00:13.6]} 45... Bb8
{[%clk 0:00:06.6]} 46. Kb5 {[%clk 0:00:12.2]} 46... Ba7 {[%clk 0:00:06.3]} 47.
Bb4 {[%clk 0:00:10.3]} 47... Bxd4 {[%clk 0:00:05.5]} 48. Bc5 {[%clk 0:00:10.4]}
48... Bxc5 {[%clk 0:00:06]} 49. Kxc5 {[%clk 0:00:11.3]} 1-0

[Event "Early-Titled-Tuesday-Blitz-April-16-2024"]
[Site "Chess.com"]
[Date "2024.04.16"]
[Round "6"]
[White "JACK_BAU3R"]
[Black "Gumugama"]
[Result "0-1"]
[WhiteElo "1986"]
[BlackElo "2209"]
[TimeControl "180+1"]
[EndTime "9:08:43 PDT"]
[Termination "Gumugama won on time"]

1. d4 {[%clk 0:03:00.9]} 1... Nf6 {[%clk 0:02:59.3]} 2. c3 {[%clk 0:03:01.8]}
2... g6 {[%clk 0:02:59.4]} 3. Bf4 {[%clk 0:03:02.2]} 3... Bg7 {[%clk 0:02:59.3]}
4. Nd2 {[%clk 0:03:02.1]} 4... O-O {[%clk 0:02:59]} 5. e4 {[%clk 0:03:02.4]}
5... d6 {[%clk 0:02:59]} 6. Be2 {[%clk 0:03:01.9]} 6... c5 {[%clk 0:02:56.2]} 7.
dxc5 {[%clk 0:03:01.8]} 7... dxc5 {[%clk 0:02:54.9]} 8. h4 {[%clk 0:03:02]} 8...
h5 {[%clk 0:02:51.8]} 9. f3 {[%clk 0:03:01.4]} 9... Nc6 {[%clk 0:02:44.4]} 10.
Nh3 {[%clk 0:03:01.1]} 10... Bxh3 {[%clk 0:02:39.6]} 11. Rxh3 {[%clk 0:03:01]}
11... e5 {[%clk 0:02:22.2]} 12. Be3 {[%clk 0:03:00.7]} 12... Qe7 {[%clk
0:02:11.2]} 13. Qc2 {[%clk 0:03:00.5]} 13... a6 {[%clk 0:02:05.2]} 14. O-O-O
{[%clk 0:03:00.2]} 14... b5 {[%clk 0:02:05.4]} 15. g4 {[%clk 0:02:59.1]} 15...
b4 {[%clk 0:01:57.2]} 16. Bg5 {[%clk 0:02:40.8]} 16... Rfc8 {[%clk 0:01:37.7]}
17. gxh5 {[%clk 0:02:39]} 17... Qe6 {[%clk 0:01:32.8]} 18. Bc4 {[%clk
0:02:36.5]} 18... Qxh3 {[%clk 0:01:31.8]} 19. hxg6 {[%clk 0:02:36.3]} 19... Nd8
{[%clk 0:01:13.6]} 20. gxf7+ {[%clk 0:02:23.9]} 20... Nxf7 {[%clk 0:01:09.6]}
21. Qb3 {[%clk 0:02:20.8]} 21... Rc7 {[%clk 0:01:07]} 22. Rg1 {[%clk 0:02:00.1]}
22... Kf8 {[%clk 0:01:06.1]} 23. f4 {[%clk 0:01:48.8]} 23... exf4 {[%clk
0:00:53.6]} 24. Bxf4 {[%clk 0:01:49.7]} 24... Re7 {[%clk 0:00:46.7]} 25. cxb4
{[%clk 0:00:57.4]} 25... Qxb3 {[%clk 0:00:41.2]} 26. axb3 {[%clk 0:00:54.6]}
26... cxb4 {[%clk 0:00:38.9]} 27. Be3 {[%clk 0:00:40.5]} 27... Nxe4 {[%clk
0:00:35.7]} 28. Nxe4 {[%clk 0:00:39.8]} 28... Rxe4 {[%clk 0:00:36.2]} 29. Bc5+
{[%clk 0:00:39.4]} 29... Kg8 {[%clk 0:00:32.6]} 30. Bd5 {[%clk 0:00:36.7]} 30...
Rc8 {[%clk 0:00:20.9]} 31. Bxe4 {[%clk 0:00:34.1]} 31... Rxc5+ {[%clk
0:00:21.3]} 32. Kb1 {[%clk 0:00:21.9]} 32... Nd6 {[%clk 0:00:21.8]} 33. Bd3
{[%clk 0:00:21.3]} 33... a5 {[%clk 0:00:18]} 34. Rg6 {[%clk 0:00:19.8]} 34...
Nf7 {[%clk 0:00:16.8]} 35. Bc4 {[%clk 0:00:19.1]} 35... Kf8 {[%clk 0:00:16.8]}
36. Rg4 {[%clk 0:00:15.2]} 36... Ne5 {[%clk 0:00:16]} 37. Rf4+ {[%clk
0:00:14.1]} 37... Ke7 {[%clk 0:00:16.6]} 38. Re4 {[%clk 0:00:12.6]} 38... Kd6
{[%clk 0:00:15.3]} 39. Rd4+ {[%clk 0:00:11.9]} 39... Ke7 {[%clk 0:00:15.7]} 40.
Re4 {[%clk 0:00:11.8]} 40... Bf6 {[%clk 0:00:15.7]} 41. h5 {[%clk 0:00:11.6]}
41... Kf8 {[%clk 0:00:15.4]} 42. Rf4 {[%clk 0:00:10.3]} 42... Ke7 {[%clk
0:00:14.5]} 43. h6 {[%clk 0:00:09.6]} 43... Nxc4 {[%clk 0:00:14.1]} 44. bxc4
{[%clk 0:00:07.1]} 44... Rh5 {[%clk 0:00:14.4]} 45. Ka2 {[%clk 0:00:03]} 45...
a4 {[%clk 0:00:14.1]} 46. c5 {[%clk 0:00:02.3]} 46... b3+ {[%clk 0:00:13.2]} 0-1

[Event "Early-Titled-Tuesday-Blitz-April-16-2024"]
[Site "Chess.com"]
[Date "2024.04.16"]
[Round "6"]
[White "CristianS27"]
[Black "Yan_Dyomin2010"]
[Result "1-0"]
[WhiteElo "2542"]
[BlackElo "2634"]
[TimeControl "180+1"]
[EndTime "9:08:44 PDT"]
[Termination "CristianS27 won by resignation"]

1. e4 {[%clk 0:03:00.9]} 1... c5 {[%clk 0:02:58.9]} 2. Nf3 {[%clk 0:03:00.8]}
2... Nc6 {[%clk 0:02:56.4]} 3. d4 {[%clk 0:03:00.5]} 3... cxd4 {[%clk
0:02:57.3]} 4. Nxd4 {[%clk 0:03:01.2]} 4... g6 {[%clk 0:02:55.2]} 5. Nc3 {[%clk
0:03:01.5]} 5... Bg7 {[%clk 0:02:55.2]} 6. Be3 {[%clk 0:03:02.4]} 6... Nf6
{[%clk 0:02:54.5]} 7. Bc4 {[%clk 0:03:02.8]} 7... O-O {[%clk 0:02:54]} 8. Bb3
{[%clk 0:03:03.5]} 8... d6 {[%clk 0:02:52.6]} 9. h3 {[%clk 0:03:03.3]} 9... Bd7
{[%clk 0:02:50.1]} 10. O-O {[%clk 0:03:03.3]} 10... Rc8 {[%clk 0:02:45.2]} 11.
Re1 {[%clk 0:03:03.3]} 11... Ne5 {[%clk 0:02:41.3]} 12. Qe2 {[%clk 0:03:02.2]}
12... Qc7 {[%clk 0:02:38.1]} 13. Rad1 {[%clk 0:03:01.3]} 13... Nc4 {[%clk
0:02:37.2]} 14. Bc1 {[%clk 0:02:59.7]} 14... a6 {[%clk 0:02:36.2]} 15. Nd5
{[%clk 0:02:57.6]} 15... Nxd5 {[%clk 0:02:35.4]} 16. exd5 {[%clk 0:02:58.5]}
16... Rfe8 {[%clk 0:02:35.6]} 17. c3 {[%clk 0:02:42.7]} 17... b5 {[%clk
0:02:34.6]} 18. h4 {[%clk 0:02:39.6]} 18... a5 {[%clk 0:02:31.6]} 19. h5 {[%clk
0:02:34.2]} 19... Qc5 {[%clk 0:02:29.6]} 20. Nf3 {[%clk 0:02:13]} 20... a4
{[%clk 0:02:22.2]} 21. Bc2 {[%clk 0:02:12.2]} 21... Bg4 {[%clk 0:02:22.2]} 22.
hxg6 {[%clk 0:02:09]} 22... hxg6 {[%clk 0:02:23.1]} 23. Qe4 {[%clk 0:01:23.4]}
23... Bxf3 {[%clk 0:02:19.3]} 24. Qxf3 {[%clk 0:01:22.2]} 24... a3 {[%clk
0:02:19.7]} 25. b4 {[%clk 0:01:04.6]} 25... Qc7 {[%clk 0:02:18.9]} 26. Qh3
{[%clk 0:00:54.4]} 26... Nb6 {[%clk 0:02:14.6]} 27. Re3 {[%clk 0:00:47.7]} 27...
Bxc3 {[%clk 0:01:53]} 28. Bxg6 {[%clk 0:00:30.3]} 28... fxg6 {[%clk 0:01:44.7]}
29. Qe6+ {[%clk 0:00:30.2]} 29... Kg7 {[%clk 0:01:34.5]} 30. Rg3 {[%clk
0:00:24.8]} 30... Bf6 {[%clk 0:01:32.9]} 31. Bh6+ {[%clk 0:00:22.4]} 31... Kxh6
{[%clk 0:01:18.1]} 32. Qf7 {[%clk 0:00:22.6]} 32... Qc2 {[%clk 0:00:48.8]} 33.
Rdd3 {[%clk 0:00:22.5]} 33... Rg8 {[%clk 0:00:15.8]} 34. Rh3+ {[%clk 0:00:13.3]}
34... Kg5 {[%clk 0:00:16.2]} 35. Rhg3+ {[%clk 0:00:09.4]} 35... Kf4 {[%clk
0:00:07.9]} 36. Qe6 {[%clk 0:00:07]} 36... Qxd3 {[%clk 0:00:04.3]} 37. Rxd3
{[%clk 0:00:05.7]} 37... Rc1+ {[%clk 0:00:04.2]} 38. Kh2 {[%clk 0:00:05.8]}
38... Rh8+ {[%clk 0:00:04.9]} 39. Rh3 {[%clk 0:00:06.4]} 39... Rxh3+ {[%clk
0:00:05.5]} 40. Qxh3 {[%clk 0:00:06.1]} 40... Ke5 {[%clk 0:00:05.3]} 41. Qe3+
{[%clk 0:00:05.8]} 41... Kxd5 {[%clk 0:00:05.4]} 42. Qxc1 {[%clk 0:00:06.2]}
42... Nc4 {[%clk 0:00:05.4]} 43. Qd1+ {[%clk 0:00:05.2]} 43... Bd4 {[%clk
0:00:06.3]} 44. f4 {[%clk 0:00:04.3]} 44... e5 {[%clk 0:00:07.2]} 45. fxe5
{[%clk 0:00:04.4]} 45... dxe5 {[%clk 0:00:08]} 46. Qg4 {[%clk 0:00:05.2]} 46...
e4 {[%clk 0:00:08.4]} 47. Qd7+ {[%clk 0:00:05]} 47... Ke5 {[%clk 0:00:08.5]} 48.
Qxb5+ {[%clk 0:00:05]} 48... Kf4 {[%clk 0:00:07]} 49. Qxc4 {[%clk 0:00:05.2]}
1-0